[Event "GER-ch Youth-U18 2022"]
[Site "Willingen"]
[Date "2022.06.08"]
[Round "6.7"]
[White "Hassemeier, Mika"]
[Black "Musiolik, David"]
[Result "0-1"]
[ECO "E71"]
[WhiteElo "2127"]
[BlackElo "2220"]
[Annotator "TA"]
[PlyCount "46"]
[EventDate "2022.06.05"]
[EventType "swiss"]
[EventRounds "9"]
[EventCountry "GER"]
[SourceTitle "playchess.com"]
[Source "ChessBase"]
[SourceQuality "1"]
[TimeControl "40/4500+30:900+30"]

{[%evp 11,46,37,50,35,51,-30,-14,-35,-23,-24,-32,-69,-77,-75,-74,-110,-67,-100,-84,-57,-47,-38,-43,-51,-36,-194,-182,-217,-211,-160,-136,-155,-110,-1829,-1781,-1473,-1310]} 1. d4 {[%emt 0:00:00]} Nf6 {[%emt 0:00:00]} 2. c4 {[%emt 0:00:00]} g6 {[%emt 0:00:00]} 3. Nc3 {[%emt 0:00:00]} Bg7 {[%emt 0:00:00]} 4. e4 {[%emt 0:00:00]} d6 {[%emt 0:00:00]} 5. h3 {[%emt 0:00:00]} Na6 {[%emt 0:00:00]} 6. Be3 {[%emt 0:00:00]} O-O {[%emt 0:00:00]} 7. g4 {[%emt 0:00:00] E71: King's Indian: 4 e4 d6 5 h3.} c5 {[%emt 0:00:00]} 8. d5 {[%emt 0:00:00]} (8. Nge2 $14) 8... e6 $1 $11 {[%emt 0:00:00]} 9. g5 {[%emt 0:02:53] [#] The position is equal.} Nh5 $146 {[%emt 0:00:00]} ({Predecessor:} 9... Ne8 10. Nge2 Nec7 11. Ng3 exd5 12. exd5 b5 13. cxb5 Nb4 14. Bg2 c4 15. O-O Nd3 {1-0 (32) Kabanova,E (2099)-Nosacheva,M (2150) Yaroslavl 2019}) 10. Be2 {[%emt 0:07:39]} exd5 {[%emt 0:00:00]} 11. cxd5 {[%emt 0:07:53]} b5 {[%emt 0:00:00][%cal Bb7b5,Bb5b4][%mdl 32]} 12. Bxh5 {[%emt 0:22:32]} gxh5 {[%emt 0:00:08]} 13. Qd2 {[%emt 0:00:42]} b4 {[%emt 0:11:50]} 14. Nd1 {[%emt 0:01:27]} Re8 {[%emt 0:04:16]} 15. f3 {[%emt 0:03:54]} f5 {[%emt 0:02:51]} 16. gxf6 $1 {[%emt 0:06:00]} Qxf6 {[%emt 0:00:12]} 17. Bg5 {[%emt 0:02:42]} Qf8 $36 {[%emt 0:07:11][%mdl 2048] Black has some pressure.} 18. Ne3 $2 {[%emt 0:03:23] [#]} (18. Qf4 $15) 18... c4 $1 $19 {[%emt 0:00:57]} 19. Nxc4 {[%emt 0:01:41]} Nc5 {[%emt 0:00:47] Hoping for ...Ba6.} 20. Be3 {[%emt 0:08:49] [#]} Nxe4 {[%emt 0:06:19][%mdl 512]} 21. fxe4 {[%emt 0:00:10]} Rxe4 {[%emt 0:00:09]} 22. O-O-O $2 {[%emt 0:05:53][%mdl 8192]} Rxc4+ {[%emt 0:00:41]} 23. Kb1 {[%emt 0:00:08]} Bf5+ {[%emt 0:00:17] Weighted Error Value: White=0.51/Black=0.05 (flawless)} 0-1

[Event "GER-ch Youth-U18 2022"]
[Site "Willingen"]
[Date "2022.06.08"]
[Round "6.8"]
[White "Weihrauch, Jakob"]
[Black "Muller, Magnus"]
[Result "1/2-1/2"]
[ECO "B12"]
[WhiteElo "2139"]
[BlackElo "1464"]
[Annotator "TA"]
[PlyCount "67"]
[EventDate "2022.06.05"]
[EventType "swiss"]
[EventRounds "9"]
[EventCountry "GER"]
[SourceTitle "playchess.com"]
[Source "ChessBase"]
[SourceQuality "1"]
[TimeControl "40/4500+30:900+30"]

{[%evp 9,67,8,8,12,17,17,13,0,15,0,9,0,23,0,0,0,8,13,22,21,16,15,25,19,29,5,31,42,60,52,67,60,53,53,60,56,100,79,84,69,73,66,72,43,47,11,43,5,4,15,5,0,0,-56,-56,-56,-56,-57,-56,-90]} 1. e4 {[%emt 0:00:00]} c6 {[%emt 0:00:00]} 2. d4 {[%emt 0:00:00]} d5 {[%emt 0:00:00]} 3. e5 {[%emt 0:00:00]} Bf5 {[%emt 0:00:00]} 4. h4 {[%emt 0:00:00]} h5 {[%emt 0:00:00]} 5. Bd3 {[%emt 0:00:00]} Bxd3 {[%emt 0:00:00]} 6. Qxd3 {[%emt 0:00:00][%cal Oe5e6] B12: Caro-Kann: Advance Variation.} Qa5+ {[%emt 0:00:00]} 7. Nd2 {[%emt 0:00:00][%cal Oe5e6,Bb1d2,Bd2b3,Bb3c1][%mdl 32] Strongly threatening e6!} e6 {[%emt 0:00:00]} 8. Ngf3 {[%emt 0:00:00] The position is equal.} Nh6 {[%emt 0:00:00]} 9. O-O {[%emt 0:00:00]} Nf5 {[%emt 0:00:00]} 10. Nb3 $1 {[%emt 0:00:00][%mdl 4] is now more promising than 10.c4.} Qb5 {[%emt 0:00:00]} 11. Qd1 {[%emt 0:00:00]} c5 {[%emt 0:00:00][%cal Bc6c5,Bc5c4][%mdl 32]} 12. c3 {[%emt 0:02:13]} Nc6 {[%emt 0:00:00]} 13. Bg5 {[%emt 0:08:49] [#]} c4 $146 {[%emt 0:00:00]} ({Predecessor:} 13... cxd4 14. cxd4 a5 15. a4 Qb6 16. Rc1 Bb4 17. Nc5 Nfxd4 18. Nxd4 Bxc5 19. Nb5 O-O 20. Qxh5 Nxe5 21. Rxc5 Qxc5 {1-0 (43) Vokhidov,S (2536)-Bluebaum,M (2642) Chess.com INT 2022}) 14. Qe2 {[%emt 0:00:23]} Qb6 {[%emt 0:00:00]} 15. Nc1 {[%emt 0:01:53]} Be7 {[%emt 0:04:56]} 16. g3 {[%emt 0:03:15]} Rc8 {[%emt 0:14:11]} 17. b3 {[%emt 0:08:00]} Ba3 {[%emt 0:04:37]} 18. bxc4 {[%emt 0:04:52]} Bxc1 {[%emt 0:02:50]} 19. Rfxc1 {[%emt 0:10:21]} Qa6 {[%emt 0:01:04]} 20. Rc2 {[%emt 0:08:45]} Qxc4 {[%emt 0:05:44]} 21. Qxc4 {[%emt 0:00:05]} dxc4 {[%emt 0:00:06]} 22. Nd2 {[%emt 0:00:24]} Na5 {[%emt 0:08:09]} 23. Ne4 {[%emt 0:02:31]} b6 {[%emt 0:04:05]} 24. Rd1 {[%emt 0:02:26]} Nc6 {[%emt 0:06:51]} 25. f3 {[%emt 0:01:41]} Rc7 {[%emt 0:00:52]} 26. Rh2 {[%emt 0:07:50] 0x0.002091a09a49dp-1022s more active pieces. The black rooks are badly placed.} Rd7 {[%emt 0:02:13] [#] ...Nxe5 is the strong threat.} 27. Rdd2 {[%emt 0:04:04]} Nfe7 {[%emt 0:03:14]} (27... b5 $5 {[%cal Rb5b4]}) 28. Nd6+ {[%emt 0:02:32]} (28. Bxe7 $5 Nxe7 29. Nd6+ Kf8 30. Rb2 $14 (30. Nxc4 Nf5 $11)) 28... Rxd6 $1 {[%emt 0:00:13]} 29. exd6 {[%emt 0:00:14]} Nd5 {[%emt 0:00:07]} 30. Rc2 {[%emt 0:06:58]} Kd7 {[%emt 0:00:05]} 31. Bf4 {[%emt 0:01:49]} (31. Bc1 $11) 31... Nxf4 $15 {[%emt 0:04:05] Black is slightly better.} 32. gxf4 {[%emt 0:00:03]} Kxd6 {[%emt 0:00:18]} 33. Rhg2 {[%emt 0:05:18]} g6 {[%emt 0:00:40][%mdl 1024] Black has compensation.} 34. f5 {[%emt 0:02:46] Weighted Error Value: White=0.14 (very precise) /Black=0.07 (flawless)} 1/2-1/2

[Event "GER-ch Youth-U18 2022"]
[Site "Willingen"]
[Date "2022.06.08"]
[Round "6.9"]
[White "Kallweit, Paul"]
[Black "Geltz, Noah"]
[Result "1/2-1/2"]
[ECO "A36"]
[WhiteElo "1863"]
[BlackElo "2156"]
[Annotator "TA"]
[PlyCount "47"]
[EventDate "2022.06.05"]
[EventType "swiss"]
[EventRounds "9"]
[EventCountry "GER"]
[SourceTitle "playchess.com"]
[Source "ChessBase"]
[SourceQuality "1"]
[TimeControl "40/4500+30:900+30"]

{[%evp 16,47,11,0,15,12,18,0,29,0,15,22,16,7,7,6,8,-5,-21,-27,-21,-28,-12,-12,-12,-14,-12,-31,-31,-33,-33,-35,-35,-96]} 1. c4 {[%emt 0:00:00]} c5 {[%emt 0:00:00]} 2. g3 {[%emt 0:00:00]} g6 {[%emt 0:00:00]} 3. Bg2 {[%emt 0:00:00]} Bg7 {[%emt 0:00:00]} 4. Nc3 {[%emt 0:00:00]} Nc6 {[%emt 0:00:00]} 5. d3 {[%emt 0:00:00]} e6 {[%emt 0:00:00][%cal Be7e6,Be6e5][%mdl 32]} 6. e4 {[%emt 0:01:07]} Nge7 {[%emt 0:00:00]} 7. Nge2 {[%emt 0:00:57]} O-O {[%emt 0:00:00]} 8. O-O {[%emt 0:00:57]} d6 {[%emt 0:04:57]} 9. Be3 {[%emt 0:07:25] 9.Rb1 is the modern continuation.} e5 {[%emt 0:02:08] Against d4. A36: Symmetrical English vs ...g6: 4 Bg2 Bg7.} 10. Qd2 {[%emt 0:13:01]} Nd4 {[%emt 0:07:42]} 11. f4 {[%emt 0:10:43] [#]} Nec6 $146 {[%emt 0:03:59] The position is equal.} ({Predecessor:} 11... f5 12. fxe5 dxe5 13. Bg5 Nxe2+ 14. Qxe2 Bf6 15. Bh6 Bg7 16. Bg5 Bf6 17. Be3 b6 18. exf5 Bxf5 19. Bxa8 Qxa8 {½-½ (50) Jobst,T (1932)-Steger,E Bad Koetzting 2018}) 12. Rf2 {[%emt 0:10:39]} Nxe2+ {[%emt 0:16:48]} 13. Nxe2 {[%emt 0:02:19]} exf4 {[%emt 0:03:13]} 14. Nxf4 {[%emt 0:04:15]} Be6 {[%emt 0:08:24]} 15. Raf1 {[%emt 0:05:11]} Qd7 {[%emt 0:02:29]} 16. Nxe6 {[%emt 0:06:57]} fxe6 {[%emt 0:00:53]} 17. Bh3 {[%emt 0:02:18]} Rxf2 {[%emt 0:01:42]} 18. Rxf2 {[%emt 0:00:36]} Bd4 {[%emt 0:07:07]} 19. Bxd4 {[%emt 0:03:17]} Nxd4 {[%emt 0:00:38]} 20. Qf4 {[%emt 0:00:58]} Nc6 {[%emt 0:04:00]} 21. Bg4 {[%emt 0:05:45]} Qe7 {[%emt 0:02:46] Black is slightly better.} 22. h4 {[%emt 0:02:05]} Ne5 {[%emt 0:00:57]} 23. Be2 {[%emt 0:00:57]} Rf8 {[%emt 0:01:18]} 24. Qxf8+ {[%emt 0:00:38] Weighted Error Value: White=0.08 (flawless) /Black=0.05 (flawless)} 1/2-1/2

[Event "GER-ch Youth-U18 2022"]
[Site "Willingen"]
[Date "2022.06.08"]
[Round "6.10"]
[White "Haack, Kevin"]
[Black "Dietlmeier, Tobias"]
[Result "1-0"]
[ECO "B10"]
[WhiteElo "2176"]
[BlackElo "1886"]
[Annotator "TA"]
[PlyCount "41"]
[EventDate "2022.06.05"]
[EventType "swiss"]
[EventRounds "9"]
[EventCountry "GER"]
[SourceTitle "playchess.com"]
[Source "ChessBase"]
[SourceQuality "1"]
[TimeControl "40/4500+30:900+30"]

{[%evp 11,41,50,59,49,76,64,156,114,142,146,173,178,165,172,220,173,167,154,537,545,541,543,547,540,539,531,516,495,1194,1136,1261,1193]} 1. e4 {[%emt 0:00:00]} c6 {[%emt 0:00:00]} 2. c4 {[%emt 0:00:00]} d5 {[%emt 0:00:00]} 3. cxd5 {[%emt 0:00:00]} cxd5 {[%emt 0:00:00]} 4. exd5 {[%emt 0:00:00]} Nf6 {[%emt 0:00:00]} 5. Qa4+ {[%emt 0:00:00]} Bd7 {[%emt 0:00:00]} 6. Qb3 {[%emt 0:00:00]} Qc7 {[%emt 0:00:00]} 7. Nc3 $1 {[%emt 0:00:00] B10: Caro-Kann: 2 d3 and 2 c4.} g6 {[%emt 0:00:00]} (7... Qe5+ 8. Be2 Qc7 9. Nf3 $18) 8. Bc4 {[%emt 0:00:00][%cal Od5d6]} Bf5 {[%emt 0:02:17]} (8... Bg7 $1 $14) 9. Nge2 {[%emt 0:00:00] [#] White is clearly better.} Na6 $146 {[%emt 0:03:49]} ({Predecessor:} 9... Bg7 10. d3 O-O 11. Bf4 Qd7 12. O-O Nh5 13. Be3 Nf6 14. Rac1 Ng4 15. Bf4 Ne5 {1-0 (42) Butuc,M (2220)-Rysbayeva,N (2052) Chotowa 2010}) 10. d4 {[%emt 0:00:51][%cal Od5d6] Inhibits Nc5. aiming for d6!} Rc8 {[%emt 0:02:19]} 11. Bb5+ {[%emt 0:01:40]} Bd7 {[%emt 0:00:32]} 12. Bf4 {[%emt 0:09:25]} Qb6 {[%emt 0:03:42]} (12... Qd8 $142 13. Be5 Bg7) 13. d6 {[%emt 0:06:54]} exd6 {[%emt 0:11:58]} 14. Bg5 $36 {[%emt 0:01:56][%mdl 2048] White is on the roll.} Be7 {[%emt 0:10:23] [#]} (14... Bxb5 $16 {is tougher.} 15. Bxf6 (15. Nxb5 Bg7 $14) (15. Qxb5+ Qxb5 16. Nxb5 Ne4 $11) 15... Bxe2) 15. Bxf6 $18 {[%emt 0:01:11] White is clearly winning.} Bxf6 {[%emt 0:00:46]} 16. Bxd7+ {[%emt 0:00:11]} Kxd7 {[%emt 0:00:07]} 17. Qxf7+ {[%emt 0:00:59]} Be7 {[%emt 0:00:12]} 18. Nd5 $1 {[%emt 0:02:00][%csl LRb6,LRe7]} Qd8 {[%emt 0:01:34]} 19. Nef4 {[%emt 0:01:56]} Qf8 {[%emt 0:03:36]} (19... Rf8 $142 20. Qxh7 (20. Qxe7+ Qxe7+ 21. Nxe7 Kxe7 $11) 20... Nb4) 20. Nf6+ {[%emt 0:00:29] Pair of Knights!} Kc7 {[%emt 0:00:34]} 21. Ne6+ {[%emt 0:00:05] Black did not feel at home in the position after the opening.  Weighted Error Value: White=0.10 (very precise) /Black=0.69} 1-0

[Event "GER-ch Youth-U18 2022"]
[Site "Willingen"]
[Date "2022.06.08"]
[Round "6.11"]
[White "Chen, Qingzhi Alexander"]
[Black "Orf, Niklas"]
[Result "1-0"]
[ECO "B07"]
[WhiteElo "1879"]
[BlackElo "1797"]
[Annotator "NA RC COMBH"]
[PlyCount "171"]
[EventDate "2022.06.05"]
[EventType "swiss"]
[EventRounds "9"]
[EventCountry "GER"]
[SourceTitle "playchess.com"]
[Source "ChessBase"]
[SourceQuality "1"]
[TimeControl "40/4500+30:900+30"]

1. e4 {[%emt 0:00:00]} d6 {[%emt 0:00:00]} 2. d4 {[%emt 0:00:00]} Nf6 {[%emt 0:00:00]} 3. Nc3 {[%emt 0:00:00]} Nbd7 {[%emt 0:00:00]} 4. Nf3 {[%emt 0:00:00]} e5 {[%emt 0:00:00]} 5. Bc4 {[%emt 0:00:00]} Be7 {[%emt 0:00:00]} 6. Be3 {[%emt 0:00:00]} O-O {[%emt 0:00:00]} 7. h3 {[%emt 0:00:00]} a6 {[%emt 0:00:00]} 8. a4 {[%emt 0:00:00]} b6 {[%emt 0:00:00]} 9. O-O {[%emt 0:00:00]} Bb7 {[%emt 0:00:00]} 10. d5 {[%emt 0:00:00]} a5 {[%emt 0:00:00]} 11. Nd2 {[%emt 0:00:00]} Nc5 {[%emt 0:00:00]} 12. Qe2 {[%emt 0:00:43]} Nfd7 {[%emt 0:03:47]} 13. Bd3 {[%emt 0:05:15]} Bg5 {[%emt 0:03:00]} 14. Nb5 {[%emt 0:04:21]} Bxe3 {[%emt 0:02:10]} 15. Qxe3 {[%emt 0:00:16]} Ba6 {[%emt 0:11:12]} 16. c3 {[%emt 0:02:30]} Nxd3 {[%emt 0:09:47]} 17. Qxd3 {[%emt 0:00:09]} Nc5 {[%emt 0:00:06]} 18. Qe2 {[%emt 0:11:37]} Qd7 {[%emt 0:03:34]} 19. c4 {[%emt 0:07:29]} f5 {[%emt 0:08:41]} 20. f3 {[%emt 0:06:37]} f4 {[%emt 0:04:20]} 21. Ra3 {[%emt 0:08:42]} Bb7 {[%emt 0:03:06]} 22. Nb3 {[%emt 0:01:46]} Na6 {[%emt 0:00:45]} 23. Nc1 {[%emt 0:00:54]} Rf6 {[%emt 0:00:42]} 24. Nd3 {[%emt 0:07:32]} Rg6 {[%emt 0:03:45]} 25. Kf2 {[%emt 0:04:48]} Qe7 {[%emt 0:04:16]} 26. Ke1 {[%emt 0:01:10]} Qh4+ {[%emt 0:01:13]} 27. Kd2 {[%emt 0:00:34]} Rf8 {[%emt 0:04:40]} 28. Raa1 {[%emt 0:03:57]} Rg3 {[%emt 0:02:40]} 29. b3 {[%emt 0:02:07]} Rf6 {[%emt 0:01:41]} 30. Kc2 {[%emt 0:02:25]} Rfg6 {[%emt 0:00:46]} 31. Rf2 {[%emt 0:00:20]} Qg5 {[%emt 0:01:32]} 32. Ne1 {[%emt 0:01:17]} Bc8 {[%emt 0:02:52]} 33. Rd1 {[%emt 0:02:11]} h5 {[%emt 0:00:37]} 34. Rd2 {[%emt 0:02:33]} Bd7 {[%emt 0:00:49]} 35. Nc3 {[%emt 0:01:07]} Kf7 {[%emt 0:03:26]} 36. Qf1 {[%emt 0:00:55]} Qe7 {[%emt 0:03:54]} 37. Ne2 {[%emt 0:07:18]} R3g5 {[%emt 0:00:09]} 38. h4 {[%emt 0:01:22]} Rg3 {[%emt 0:00:08]} 39. Qh1 {[%emt 0:03:54]} Rf6 {[%emt 0:00:14]} 40. Nd3 {[%emt 0:00:58]} Nc5 {[%emt 0:04:36]} 41. Nxc5 {[%emt 0:00:00]} bxc5 {[%emt 0:00:00]} 42. Qh2 $2 {[%emt 0:00:00]} ({White should try} 42. Nxg3 $18 fxg3 43. Rfe2) 42... Rfg6 {[%emt 0:00:00]} 43. Nc3 {[%emt 0:00:00]} Rh6 {[%emt 0:00:00]} 44. Rd1 {[%emt 0:00:00]} g5 {[%emt 0:07:26]} 45. hxg5 {[%emt 0:00:00]} Rxg5 {[%emt 0:01:37]} 46. Qh4 {[%emt 0:01:09]} Rg7 {[%emt 0:02:41]} (46... Rg3 $5 {[%cal Re7h4]} 47. Rh1 Qxh4 48. Rxh4 Rhg6 $11) 47. Qh1 {[%emt 0:01:51]} Qd8 {[%emt 0:06:44]} 48. Nb5 {[%emt 0:00:39]} c6 {[%emt 0:02:44]} 49. dxc6 {[%emt 0:00:53]} Bxc6 {[%emt 0:00:09]} 50. Rfd2 {[%emt 0:00:36]} Rgg6 {[%emt 0:00:31]} 51. Qh3 {[%emt 0:02:59]} Ke8 {[%emt 0:02:13]} 52. Nc3 {[%emt 0:06:16]} h4 {[%emt 0:00:31]} 53. Nb5 {[%emt 0:01:31]} Qd7 {[%emt 0:00:53]} 54. Qh1 {[%emt 0:02:28]} Qd8 {[%emt 0:01:01]} 55. Nc3 {[%emt 0:00:31]} Qd7 {[%emt 0:00:16]} 56. Na2 {[%emt 0:00:09]} Rh7 {[%emt 0:00:57]} 57. Nc1 {[%emt 0:00:38]} h3 {[%emt 0:00:27]} 58. gxh3 {[%emt 0:00:27]} Rxh3 {[%emt 0:00:24]} 59. Qf1 {[%emt 0:00:31]} Rhh6 {[%emt 0:00:49]} 60. Na2 {[%emt 0:00:19]} Ke7 {[%emt 0:00:27]} 61. Rg2 {[%emt 0:01:05]} Qe8 {[%emt 0:01:01]} 62. Rdd2 {[%emt 0:00:36]} Qg8 {[%emt 0:00:17]} 63. Nc3 {[%emt 0:01:01]} Kf7 {[%emt 0:00:53]} 64. Rh2 {[%emt 0:01:35]} Qh8 {[%emt 0:00:42]} 65. Rxh6 {[%emt 0:00:49]} Qxh6 {[%emt 0:00:06]} 66. Nb5 {[%emt 0:00:20]} Ke7 {[%emt 0:00:31]} 67. Nc3 {[%emt 0:00:48]} Qh8 {[%emt 0:00:12]} 68. Rg2 {[%emt 0:00:11]} Rh6 {[%emt 0:00:43]} 69. Qg1 {[%emt 0:00:28]} Kf7 {[%emt 0:00:13]} 70. Nb5 {[%emt 0:00:19]} Qf8 {[%emt 0:00:58]} 71. Rg5 {[%emt 0:00:13]} Bd7 {[%emt 0:00:28]} 72. Nc7 {[%emt 0:01:12]} Qh8 {[%emt 0:00:31]} 73. Nb5 {[%emt 0:00:25]} Qf8 {[%emt 0:01:01]} 74. Kc3 {[%emt 0:00:26]} Qh8 {[%emt 0:00:43]} 75. Kb2 {[%emt 0:00:26]} Rh1 {[%emt 0:00:29]} 76. Qf2 {[%emt 0:00:22]} Rh6 {[%emt 0:00:47]} 77. Qd2 {[%emt 0:00:24]} Qf6 {[%emt 0:00:06]} 78. Rg2 {[%emt 0:00:21]} Bxb5 {[%emt 0:00:49]} 79. axb5 {[%emt 0:00:11]} Qd8 {[%emt 0:00:06]} 80. Qd5+ {[%emt 0:00:10]} Kf6 {[%emt 0:00:21]} 81. Qb7 $18 {[%emt 0:00:23]} (81. Rg8 $142 Rh2+ 82. Kc3 Qxg8 83. Qxg8) 81... Rg6 {[%emt 0:00:36]} 82. Rxg6+ {[%emt 0:00:41]} Kxg6 {[%emt 0:00:03]} 83. Qc6 {[%emt 0:00:11]} Qg5 {[%emt 0:00:50]} 84. Qxd6+ {[%emt 0:00:11]} Kh5 {[%emt 0:00:03]} 85. Qd2 {[%emt 0:00:20]} Qg3 {[%emt 0:00:36]} 86. b6 {[%emt 0:00:44]} 1-0

[Event "GER-ch Youth-U18 2022"]
[Site "Willingen"]
[Date "2022.06.08"]
[Round "6.12"]
[White "Leonard, Timo"]
[Black "Rohde, Niclas"]
[Result "1/2-1/2"]
[ECO "E91"]
[WhiteElo "2018"]
[BlackElo "1730"]
[Annotator "TA"]
[PlyCount "82"]
[EventDate "2022.06.05"]
[EventType "swiss"]
[EventRounds "9"]
[EventCountry "GER"]
[SourceTitle "playchess.com"]
[Source "ChessBase"]
[SourceQuality "1"]
[TimeControl "40/4500+30:900+30"]

{[%evp 18,82,96,67,101,67,67,68,72,56,57,54,58,58,58,49,52,61,57,-30,0,-28,0,-58,-27,-110,-111,-152,-135,-258,-265,-415,-408,-433,-400,-391,-247,-2746,-431,-2400,-489,-527,-225,-418,-410,-570,-523,-702,-687,-618,0,0,0,0,0,0,0,0,0,0,0,0,0,0,0,0,0]} 1. d4 {[%emt 0:00:00]} Nf6 {[%emt 0:00:00]} 2. c4 {[%emt 0:00:00]} g6 {[%emt 0:00:00]} 3. Nc3 {[%emt 0:00:00]} Bg7 {[%emt 0:00:00]} 4. e4 {[%emt 0:00:00]} d6 {[%emt 0:00:00]} 5. Nf3 {[%emt 0:00:00]} O-O {[%emt 0:00:00]} 6. Be2 {[%emt 0:00:00]} Nbd7 {[%emt 0:00:00]} 7. Be3 {[%emt 0:00:00]} c6 {[%emt 0:00:00]} 8. O-O {[%emt 0:00:00]} e5 {[%emt 0:00:00]} 9. d5 {[%emt 0:00:00]} c5 {[%emt 0:00:00]} 10. Nd2 {[%emt 0:00:00] White is more active.} Kh8 {[%emt 0:00:00] 10...Ne8 is vanishing. E94: King's Indian: Classical: 6 Be2 e5 7 0-0: Various Black 7th moves.} 11. a3 {[%emt 0:00:00]} Ng8 {[%emt 0:00:00]} 12. b4 {[%emt 0:03:59]} b6 {[%emt 0:00:00] White is slightly better.} 13. Rb1 {[%emt 0:10:33]} f5 {[%emt 0:04:02]} 14. f3 {[%emt 0:00:21] [#]} f4 $146 {[%emt 0:01:10]} ({Predecessor:} 14... Bh6 15. Bxh6 Nxh6 16. Qa4 Qg5 17. f4 exf4 18. Qc6 Rb8 19. Qxd6 f3 20. Nxf3 Qe3+ {1-0 (62) Berger,S (2408)-Hess,M (2378) Magdeburg 2020}) 15. Bf2 {[%emt 0:00:02]} g5 {[%emt 0:01:08]} 16. Qa4 {[%emt 0:03:10]} Rf6 {[%emt 0:07:41]} 17. Qc6 {[%emt 0:11:17]} Rb8 {[%emt 0:04:46]} 18. bxc5 {[%emt 0:02:46]} ({White should try} 18. Rb2 $14) 18... Nxc5 $11 {[%emt 0:12:37]} 19. Qb5 {[%emt 0:00:08]} Rb7 {[%emt 0:00:46]} 20. a4 {[%emt 0:08:33]} (20. Bxc5 $11 bxc5 21. Qa4) 20... h5 {[%emt 0:03:31]} 21. Ra1 {[%emt 0:02:52]} (21. Nb3 $11) 21... Rg6 {[%emt 0:03:04]} 22. a5 {[%emt 0:06:07]} g4 $1 {[%emt 0:01:43]} 23. Bxc5 {[%emt 0:06:16]} (23. fxg4 $17 {was worth a try.} hxg4 24. axb6 Rxb6 25. Qa5) 23... bxc5 $19 {[%emt 0:00:43]} 24. Qa4 {[%emt 0:00:53]} (24. Qc6 $142 Rb2 25. Ra2 Rxa2 26. Nxa2) 24... g3 {[%emt 0:02:20]} (24... Rb2 25. Rfd1 $17) 25. h3 {[%emt 0:00:22]} (25. hxg3 $2 fxg3 26. Rfb1 Bh6 $19) 25... Qh4 {[%emt 0:00:24][%cal Oc8h3]} (25... Rb2 26. Rfd1 $17) 26. Rfb1 {[%emt 0:02:26]} (26. Qe8 Bxh3 $1 {[%mdl 512]} 27. Qd8 Bf6 28. Rfe1 Bxg2) 26... Bxh3 {[%emt 0:07:44]} 27. gxh3 {[%emt 0:00:25] [#]} (27. Rxb7 $2 Bxg2 $1 {[%mdl 512]} 28. Kxg2 Qh2+ 29. Kf1 Qh1#) (27. Nf1 Bd7 28. Qa2) 27... Rxb1+ {[%emt 0:00:20]} (27... Qxh3 $142 $1 28. Nf1 Rxb1 29. Rxb1 g2) 28. Rxb1 {[%emt 0:01:23]} (28. Kg2 $142 Rb2 29. Ra2 Rxa2 30. Nxa2) 28... g2 {[%emt 0:00:21]} (28... Qxh3 $142 29. Nf1 g2) 29. Qe8 {[%emt 0:04:27]} Kh7 {[%emt 0:06:36]} (29... Rg3 $142 30. Rb8 Bf6) 30. Qd7 {[%emt 0:02:12]} (30. Bf1 Qxh3 31. Qxg6+ Kxg6 32. Bxg2) 30... Nh6 $1 {[%emt 0:04:11][%cal Oh6f7] aiming for ...Nf7!} 31. Bd3 {[%emt 0:05:26]} (31. Nb5 Nf7 $1 32. Qf5 (32. Qxf7 $2 Qxh3 33. Qxg6+ Kxg6 $19) 32... Ng5 33. Kxg2 Qg3+ 34. Kh1 Nxh3 35. Qxg6+ (35. Qxh5+ $2 Kg8) 35... Kxg6 $19) 31... Rg3 {[%emt 0:01:59]} 32. Rb7 {[%emt 0:00:54]} Rg5 $1 {[%emt 0:08:42]} 33. Rb1 {[%emt 0:00:18] [#] Inhibits Qe1+.} Ng8 $2 {[%emt 0:07:17]} (33... Ng4 $1 $19 {[%mdl 512] ( -> ...Qf2#)} 34. hxg4 hxg4 35. fxg4 Qh1+ 36. Kf2 Qh2) 34. Ne2 $1 $11 {[%emt 0:02:51] The position is equal.} Nf6 {[%emt 0:02:48]} 35. Qe6 {[%emt 0:00:10]} Ng4 {[%emt 0:01:39]} 36. hxg4 {[%emt 0:04:56]} hxg4 {[%emt 0:01:42]} 37. fxg4 {[%emt 0:02:45] Threatens to win with Nf3.} (37. Qxd6 {gets mated.} g3 38. Nxg3 fxg3) 37... Qh1+ {[%emt 0:02:34]} 38. Kf2 {[%emt 0:00:14] And now Nf3 would win.} Qh4+ {[%emt 0:00:15]} 39. Kg1 {[%emt 0:00:50]} Qh1+ {[%emt 0:00:11]} 40. Kf2 {[%emt 0:00:31] Nf3 is the strong threat.} Qh4+ {[%emt 0:00:06]} 41. Kg1 {[%emt 0:15:47]} Qh1+ {[%emt 0:15:10] And White is the lucky defender.  Weighted Error Value: White=0.73/Black=0.59} 1/2-1/2